bitfinex-derivatives/quotes_BTCF0:USTF0_20210706
["timestamp","ask_amount","ask_price","bid_price","bid_amount"]
[1625606962568,2.85573858,33883.0,33882.0,0.74972577]
[1625606962810,4.24716704,33883.0,33882.0,0.7459456]
[1625606962991,4.24716704,33883.0,33882.0,0.50537016]
[1625606963592,4.24716704,33883.0,33882.0,0.21022384]
[1625606963952,4.24716704,33883.0,33882.0,0.2140042]
[1625606964253,4.48774248,33883.0,33882.0,0.2140042]
[1625606964614,3.09631402,33883.0,33882.0,0.2140042]
[1625606965277,4.48797394,33883.0,33882.0,0.2140042]
[1625606970264,4.48797394,33883.0,33882.0,0.21022384]
[1625606970384,4.48797394,33883.0,33878.0,0.24057544]
[1625606970385,0.29514632,33879.0,33878.0,0.24057544]
[1625606970504,0.35214632,33879.0,33878.0,0.24057544]
[1625606970624,2.96161062,33879.0,33878.0,0.24057544]
[1625606970986,2.97712919,33879.0,33878.0,0.24435584]
[1625606971106,7.61302919,33879.0,33878.0,0.24435584]
[1625606972428,8.09418007,33879.0,33878.0,0.24435584]
[1625606973216,6.70247737,33879.0,33878.0,0.24435584]
[1625606974001,8.09353318,33879.0,33878.0,0.24435584]
[1625606974902,6.70247737,33879.0,33878.0,0.24435584]
[1625606984159,8.09270229,33879.0,33878.0,0.24435584]
[1625606984399,6.70247737,33879.0,33878.0,0.24435584]
[1625606984818,6.70247737,33879.0,33878.0,0.24057544]
[1625606985542,8.09278977,33879.0,33878.0,0.24057544]
[1625606986806,9.13542444,33879.0,33878.0,0.24057544]
[1625606988183,9.11990587,33879.0,33878.0,0.24057544]
[1625606988427,9.13544134,33879.0,33878.0,0.24057544]
[1625606992453,8.65429046,33879.0,33874.0,1.01878777]
[1625606992813,1.04238303,33875.0,33874.0,1.01878777]
[1625606992935,1.09938303,33875.0,33874.0,1.01878777]
[1625606993055,5.36615847,33875.0,33874.0,1.25936321]
[1625606993176,5.38166432,33875.0,33874.0,1.26314641]
[1625606993596,5.38166432,33875.0,33874.0,4.96264641]
[1625606995280,5.36615847,33875.0,33874.0,6.15118536]
[1625606995940,5.30915847,33875.0,33874.0,6.15118536]
[1625606996302,4.26677544,33875.0,33874.0,6.15118536]
[1625606996721,4.26677544,33875.0,33874.0,7.52755484]
[1625606999787,4.26677544,33875.0,33874.0,13.06455484]
[1625606999906,4.28227992,33875.0,33874.0,13.06455484]
[1625607001654,4.28227992,33875.0,33874.0,3.82805484]
[1625607003753,5.3159094,33875.0,33874.0,3.82805484]
[1625607004595,5.3729094,33875.0,33874.0,3.82805484]
[1625607005074,5.3159094,33875.0,33874.0,3.82805484]
[1625607005316,5.3159094,33875.0,33874.0,2.45168536]
[1625607005496,5.3159094,33875.0,33874.0,3.84262811]
[1625607008316,5.3729094,33875.0,33874.0,3.84262811]
[1625607008437,5.3729094,33875.0,33874.0,2.45168536]
[1625607008798,5.3159094,33875.0,33874.0,2.45168536]
[1625607009288,5.3159094,33875.0,33874.0,3.84269124]
[1625607012465,5.3729094,33875.0,33874.0,3.84269124]
[1625607013009,5.3729094,33875.0,33874.0,3.92999124]
[1625607013310,6.57745535,33875.0,33874.0,3.84269124]
[1625607016795,7.26555149,33875.0,33874.0,4.53843712]
[1625607024128,7.20855149,33875.0,33874.0,4.53843712]
[1625607027133,8.58581956,33875.0,33874.0,4.53843712]
[1625607027672,7.20855149,33875.0,33874.0,4.53843712]
[1625607028331,8.5859236,33875.0,33874.0,4.53843712]
[1625607028812,7.20855149,33875.0,33874.0,4.53843712]
[1625607028992,8.58594103,33875.0,33874.0,4.53843712]
[1625607031696,8.64294103,33875.0,33874.0,4.53843712]
[1625607032240,8.58594103,33875.0,33874.0,4.53843712]
[1625607032357,8.64294103,33875.0,33874.0,4.53843712]
[1625607032659,8.58594103,33875.0,33874.0,4.53843712]
[1625607034220,8.64294103,33875.0,33874.0,4.53843712]
[1625607036144,8.64294103,33875.0,33874.0,4.29786168]
[1625607039449,8.58594103,33875.0,33874.0,4.29786168]
[1625607041314,8.64294103,33875.0,33874.0,4.29786168]
[1625607042397,8.64294103,33875.0,33874.0,2.9068558]
[1625607044989,8.64294103,33875.0,33874.0,4.30034997]
[1625607046195,8.64294103,33875.0,33874.0,2.9068558]
[1625607051363,8.64294103,33875.0,33874.0,1.71831685]
[1625607053710,9.15872539,33875.0,33874.0,2.24068066]
[1625607056174,9.15872539,33875.0,33874.0,3.45946572]
[1625607058700,9.15872539,33875.0,33874.0,2.24068066]
[1625607062362,9.15872539,33875.0,33874.0,3.45960514]
[1625607062605,9.15872539,33875.0,33874.0,2.24068066]
[1625607062845,9.15872539,33875.0,33874.0,3.45966974]
[1625607063386,9.24722539,33875.0,33874.0,3.45966974]
[1625607063626,9.15872539,33875.0,33874.0,3.45966974]
[1625607064047,9.15872539,33875.0,33874.0,7.80366974]
[1625607064706,9.15872539,33875.0,33874.0,3.45966974]
[1625607070240,9.15872539,33875.0,33874.0,2.24068066]
[1625607071262,10.70163469,33875.0,33874.0,2.24068066]
[1625607083173,10.70163469,33875.0,33874.0,1.94548207]
[1625607087201,9.15872539,33875.0,33874.0,1.94548207]
[1625607087803,10.69855851,33875.0,33874.0,1.94548207]
[1625607090031,10.69855851,33875.0,33874.0,1.65028348]
[1625607096946,10.69855851,33875.0,33874.0,1.35505438]
[1625607102002,10.7334356,33875.0,33874.0,1.35505438]
[1625607102123,10.7334356,33875.0,33874.0,1.22189289]
[1625607103866,10.69855851,33875.0,33874.0,0.92662456]
[1625607104405,10.73343556,33875.0,33874.0,0.92662456]
[1625607105970,10.69855851,33875.0,33874.0,0.92662456]
[1625607106812,10.73343601,33875.0,33874.0,0.92662456]
[1625607107055,10.69855851,33875.0,33874.0,0.92662456]
[1625607107352,10.69855851,33875.0,33874.0,0.93042229]
[1625607107895,10.69855851,33875.0,33874.0,0.92662456]
[1625607108379,10.73343595,33875.0,33874.0,0.92662456]
[1625607109941,10.69855851,33875.0,33874.0,0.92662456]
[1625607110898,10.69855851,33875.0,33874.0,0.63130828]
[1625607112760,10.69855851,33875.0,33874.0,0.52236381]
[1625607113120,10.73343622,33875.0,33874.0,0.52236381]
[1625607116605,6.70723622,33875.0,33874.0,0.52236381]
[1625607117746,6.70723622,33875.0,33874.0,0.22704753]
[1625607118587,6.70723622,33875.0,33874.0,0.57550375]
[1625607121472,6.70723622,33875.0,33874.0,0.26133177]
[1625607121953,8.43860863,33875.0,33874.0,0.26133177]
[1625607122433,8.43860863,33875.0,33874.0,0.08711059]
[1625607123095,8.43860863,33875.0,33874.0,0.26132222]
[1625607123336,6.70723622,33875.0,33874.0,0.26132222]
[1625607123577,8.44067985,33875.0,33874.0,0.26132222]
[1625607123996,6.70723622,33875.0,33874.0,0.26132222]
[1625607124717,6.70723622,33875.0,33873.0,0.3144483]
[1625607124960,4.21078921,33874.0,33873.0,0.3144483]
[1625607125078,9.38888921,33874.0,33873.0,0.3144483]
[1625607125981,9.62946465,33874.0,33873.0,0.3144483]
[1625607127061,10.66970193,33874.0,33873.0,0.3144483]
[1625607129527,10.61270193,33874.0,33873.0,0.3144483]
[1625607130551,10.66970193,33874.0,33873.0,0.3144483]
[1625607131274,10.66970193,33874.0,33871.0,1.04520121]
[1625607131513,5.20334971,33872.0,33871.0,0.74988493]
[1625607131637,5.26034971,33872.0,33871.0,0.74988493]
[1625607132056,5.51636313,33872.0,33871.0,0.75368261]
[1625607132416,5.51636313,33872.0,33871.0,0.00379768]
[1625607132839,5.51636313,33872.0,33870.0,0.00380054]
[1625607133137,0.31301342,33872.0,33871.0,0.00380054]
[1625607133378,0.29757544,33872.0,33871.0,0.00380054]
[1625607133498,4.46111799,33872.0,33871.0,0.00380054]
[1625607133678,4.47654007,33872.0,33870.0,0.00380052]
[1625607133858,4.47654007,33872.0,33871.0,0.00380052]
[1625607134159,4.47654007,33872.0,33870.0,0.00380052]
[1625607134402,4.47654007,33872.0,33869.0,1.21954827]
[1625607134519,4.16417133,33871.0,33868.0,1.21929701]
[1625607134639,0.2764,33870.0,33868.0,1.21929701]
[1625607134819,2.60271481,33869.0,33868.0,1.21929701]
[1625607134938,2.67513695,33869.0,33868.0,1.21929701]
[1625607135180,2.67513695,33869.0,33868.0,1.22309754]
[1625607135601,6.42133695,33869.0,33868.0,1.22309754]
[1625607136204,6.90248783,33869.0,33868.0,1.22309754]
[1625607138067,6.98968783,33869.0,33868.0,1.22309754]
[1625607138369,6.98968783,33869.0,33868.0,0.92778126]
[1625607141614,8.55736307,33869.0,33868.0,0.92778126]
[1625607141854,8.47016307,33869.0,33868.0,0.92778126]
[1625607145458,8.47016307,33869.0,33868.0,0.63246498]
[1625607146179,8.47016307,33869.0,33868.0,0.00380053]
[1625607146599,8.47016307,33869.0,33867.0,0.00379988]
[1625607146899,1.13192905,33868.0,33867.0,0.00379988]
[1625607147019,1.18892905,33868.0,33867.0,0.00379988]
[1625607148099,0.057,33868.0,33867.0,0.00379988]
[1625607148521,1.03467945,33868.0,33867.0,0.00379988]
[1625607149722,1.03467945,33868.0,33866.0,1.39325776]
[1625607149903,2.60222489,33868.0,33867.0,0.00381575]
[1625607150085,2.5868472,33868.0,33867.0,0.00763151]
[1625607150324,2.60222542,33868.0,33867.0,0.00763151]
[1625607152188,2.60222542,33868.0,33861.0,1.27988192]
[1625607152428,0.01539005,33867.0,33862.0,0.00381189]
[1625607152847,4.36297,33863.0,33862.0,0.00381189]
[1625607153210,4.37838012,33863.0,33862.0,0.00381189]
[1625607154530,4.61895556,33863.0,33862.0,0.00381189]
[1625607159156,4.61895556,33863.0,33861.0,0.98837753]
[1625607159457,0.01542213,33862.0,33861.0,0.98837753]
[1625607159818,0.01542213,33862.0,33858.0,0.24057544]
[1625607159936,3.7689,33859.0,33858.0,0.24057544]
[1625607160177,3.7689,33859.0,33858.0,0.24437882]
[1625607161019,4.00947544,33859.0,33858.0,0.24437882]
[1625607161799,4.00947544,33859.0,33858.0,1.28939465]
[1625607162040,4.00947544,33859.0,33858.0,2.68273687]
[1625607163242,3.7689,33859.0,33858.0,2.44216143]
[1625607163844,4.25005088,33859.0,33858.0,2.68273687]
[1625607163964,5.30981822,33859.0,33858.0,2.68273687]
[1625607164623,5.30981822,33859.0,33858.0,2.44216143]
[1625607165466,5.30981822,33859.0,33858.0,3.6613104]
[1625607165886,5.6051345,33859.0,33858.0,3.6613104]
[1625607167209,5.58971175,33859.0,33858.0,3.6613104]
[1625607171176,6.28643323,33859.0,33858.0,4.35760167]
[1625607171417,6.28643323,33859.0,33858.0,5.92370569]
[1625607174000,5.24208864,33859.0,33858.0,5.92370569]
[1625607174239,6.28708025,33859.0,33858.0,5.92370569]
[1625607174898,6.28708025,33859.0,33858.0,5.91990231]
[1625607175141,6.28708025,33859.0,33858.0,5.92370268]
[1625607175681,4.30181249,33859.0,33858.0,5.92370268]
[1625607175800,2.53361249,33859.0,33858.0,5.92370268]
[1625607180074,2.53361249,33859.0,33858.0,6.16427812]
[1625607183020,2.53361249,33859.0,33858.0,5.92370268]
[1625607183620,2.53361249,33859.0,33858.0,4.35759866]
[1625607184161,3.75283287,33859.0,33858.0,4.35759866]
[1625607187047,5.14521287,33859.0,33858.0,4.35759866]
[1625607187287,5.14521287,33859.0,33858.0,2.96425644]
[1625607187888,5.20221287,33859.0,33858.0,2.96425644]
[1625607188852,5.20221287,33859.0,33858.0,2.96045607]
[1625607189213,5.20221287,33859.0,33858.0,2.96425667]
[1625607190476,3.92881287,33859.0,33858.0,2.96425667]
[1625607190596,3.87181287,33859.0,33858.0,2.96425667]
[1625607190956,1.26021249,33859.0,33858.0,4.35642855]
[1625607191076,1.24478025,33859.0,33858.0,4.63053855]
[1625607191255,1.21699498,33860.0,33858.0,6.19669909]
[1625607191256,0.22139645,33860.0,33858.0,6.19669909]
[1625607191556,0.22139645,33860.0,33859.0,0.00381006]
[1625607191918,1.04373428,33862.0,33859.0,0.00381006]
[1625607192098,1.04373428,33862.0,33861.0,0.72172632]
[1625607192216,1.04373428,33862.0,33861.0,5.75172632]
[1625607192459,1.04373428,33862.0,33861.0,5.75553601]
[1625607192698,1.98001662,33874.0,33861.0,9.93146836]
[1625607192699,1.21769924,33866.0,33861.0,9.93146836]
[1625607192945,1.21769924,33866.0,33865.0,2.60995976]
[1625607193059,1.21769924,33866.0,33865.0,2.92249976]
[1625607193181,1.21732908,33867.0,33865.0,2.92249976]
[1625607193419,1.21732908,33867.0,33866.0,2.61373749]
[1625607193781,1.23273985,33867.0,33866.0,6.34463749]
[1625607194149,0.01541077,33867.0,33866.0,8.39174491]
[1625607194261,1.21706209,33870.0,33866.0,8.39174491]
[1625607194383,0.9758,33871.0,33866.0,8.39174491]
[1625607194625,0.9758,33871.0,33870.0,2.6090631]
[1625607194865,0.9758,33871.0,33870.0,4.17427989]
[1625607195104,0.9758,33871.0,33870.0,4.17808601]
[1625607196003,0.9758,33871.0,33870.0,3.88276973]
[1625607196245,0.9758,33871.0,33870.0,4.36392061]
[1625607198467,0.9758,33871.0,33870.0,4.36011449]
[1625607199366,0.7367,33871.0,33870.0,4.36011449]
[1625607203036,0.7367,33871.0,33870.0,2.7948977]
[1625607203276,0.7367,33871.0,33870.0,4.35148413]
[1625607203518,0.7367,33871.0,33870.0,2.7948977]
[1625607204298,0.7367,33871.0,33870.0,2.49958142]
[1625607204722,0.7367,33871.0,33870.0,4.05361841]
[1625607204959,0.7367,33871.0,33870.0,2.49958142]
[1625607206342,1.21503212,33879.0,33870.0,4.05321979]
[1625607206462,1.21503212,33879.0,33878.0,0.72172632]
[1625607206584,1.56202723,33885.0,33878.0,0.72172632]
[1625607206585,1.21465779,33880.0,33878.0,1.03371632]
[1625607206706,1.21465779,33880.0,33878.0,5.63631632]
[1625607207368,1.21451996,33881.0,33878.0,5.63631632]
[1625607207851,1.21451996,33881.0,33879.0,0.51777396]
[1625607208149,0.52055979,33880.0,33879.0,0.51777396]
[1625607211274,0.52055979,33880.0,33879.0,0.22245768]
[1625607215061,0.52055979,33880.0,33878.0,5.63631632]
[1625607217228,4.5127,33883.0,33878.0,5.63631632]
[1625607218069,4.5127,33883.0,33878.0,5.34100004]
[1625607219093,4.5127,33883.0,33878.0,4.91459]
[1625607219275,4.5127,33883.0,33882.0,4.2269]
[1625607219694,4.5127,33883.0,33882.0,4.70805088]
[1625607221012,4.52810438,33883.0,33882.0,4.70805088]
[1625607222035,5.56678483,33883.0,33882.0,4.70805088]
[1625607222819,5.56678483,33883.0,33882.0,0.48115088]
[1625607222938,5.62378483,33883.0,33882.0,0.48115088]
[1625607224984,5.62378483,33883.0,33882.0,0.1858346]
[1625607225703,5.86436027,33883.0,33882.0,0.1858346]
[1625607226844,5.86436027,33883.0,33882.0,0.18964229]
[1625607227807,5.62378483,33883.0,33882.0,0.18964229]
[1625607228409,4.58510438,33883.0,33882.0,0.18964229]
[1625607228587,0.07240438,33883.0,33882.0,0.18964229]
[1625607228708,0.01540438,33883.0,33882.0,0.18964229]
[1625607229789,0.01539719,33884.0,33882.0,0.18964229]
[1625607229909,0.01539719,33884.0,33883.0,5.1278]
[1625607230031,0.01539719,33884.0,33883.0,5.13160756]
[1625607230449,1.0535289,33884.0,33883.0,5.13160756]
[1625607230751,0.01539719,33884.0,33883.0,5.13160756]
[1625607231829,0.01539719,33884.0,33883.0,4.83629128]
[1625607238143,1.15098318,33886.0,33883.0,4.83629128]
[1625607238323,1.15098318,33886.0,33883.0,4.89329128]
[1625607238563,0.01535234,33885.0,33884.0,0.00382239]
[1625607239162,0.01535234,33885.0,33883.0,4.59798983]
[1625607239285,0.01535234,33885.0,33883.0,4.54098983]
[1625607244150,4.1363,33884.0,33883.0,4.54098983]
[1625607244629,4.15166412,33884.0,33883.0,4.5448083]
[1625607246072,4.15166412,33884.0,33883.0,4.24949202]
[1625607247819,5.19143056,33884.0,33883.0,4.24949202]
[1625607248300,5.19143056,33884.0,33883.0,0.00381847]
[1625607248419,6.40544281,33884.0,33883.0,0.00381847]
[1625607249871,6.40544281,33884.0,33883.0,0.34901455]
[1625607250587,7.7942852,33884.0,33883.0,0.34901455]
[1625607250768,7.7942852,33884.0,33883.0,0.00381847]
[1625607251668,8.48989132,33884.0,33883.0,0.69545185]
[1625607252328,8.48989132,33884.0,33883.0,0.69163338]
[1625607252570,8.9710422,33884.0,33883.0,0.69163338]
[1625607252810,8.9710422,33884.0,33883.0,0.69544723]
[1625607252930,8.9710422,33884.0,33883.0,0.40013095]
[1625607253170,10.53729421,33884.0,33883.0,0.40013095]
[1625607254734,10.05614333,33884.0,33883.0,1.43893083]
[1625607255093,10.53729421,33884.0,33883.0,1.43893083]
[1625607256595,10.52193009,33884.0,33883.0,1.43511698]
[1625607256897,10.53730993,33884.0,33883.0,1.43893128]
[1625607257074,10.05615905,33884.0,33883.0,1.43893128]
[1625607257616,10.53730993,33884.0,33883.0,1.43893128]
[1625607258097,10.53730993,33884.0,33883.0,5.94923128]
[1625607259597,10.05615905,33884.0,33883.0,5.94923128]
[1625607259777,10.05615905,33884.0,33883.0,5.653915]
[1625607260138,10.53730993,33884.0,33883.0,1.143615]
[1625607262124,10.05615905,33884.0,33883.0,1.143615]
[1625607262788,10.53730993,33884.0,33883.0,1.143615]
[1625607264715,10.05615905,33884.0,33883.0,1.143615]
[1625607265193,10.53730993,33884.0,33883.0,1.143615]
[1625607265915,10.52193009,33884.0,33883.0,1.1398007]
[1625607266216,10.53731036,33884.0,33883.0,1.14361494]
[1625607266754,10.53731036,33884.0,33883.0,0.84829866]
[1625607267176,10.05615948,33884.0,33883.0,0.84829866]
[1625607267297,5.71793228,33884.0,33883.0,0.00381424]
[1625607267535,7.11170961,33884.0,33883.0,0.00381424]
[1625607267661,8.81243743,33884.0,33883.0,0.00381424]
[1625607267777,8.81243743,33884.0,33882.0,1.21635023]
[1625607268195,4.61745088,33884.0,33883.0,0.00381427]
[1625607268617,4.63283125,33884.0,33883.0,0.00381427]
[1625607268857,8.81416092,33884.0,33883.0,0.00381427]
[1625607269760,8.33301004,33884.0,33883.0,0.00381427]
[1625607270000,8.33301004,33884.0,33883.0,5.03261427]
[1625607270180,8.81416092,33884.0,33883.0,5.03261427]
[1625607273364,8.90286092,33884.0,33883.0,5.03261427]
[1625607273484,8.81416092,33884.0,33883.0,5.03261427]
[1625607273605,8.81416092,33884.0,33883.0,4.73729799]
[1625607274266,8.33301004,33884.0,33882.0,1.21635023]
[1625607274505,3.84894732,33883.0,33882.0,1.21635023]
[1625607274746,4.498562,33883.0,33882.0,1.21635023]
[1625607274987,4.498562,33883.0,33882.0,1.22016118]
[1625607275528,4.498562,33883.0,33882.0,0.00381095]
[1625607275948,4.53343217,33883.0,33880.0,1.21935706]
[1625607276069,4.2076,33881.0,33880.0,1.21935706]
[1625607276190,6.99279724,33881.0,33879.0,4.80039521]
[1625607276488,2.80055435,33880.0,33879.0,4.80039521]
[1625607276788,3.04112979,33880.0,33879.0,4.80420656]
[1625607278048,1.47449623,33880.0,33879.0,4.80420656]
[1625607278412,1.47449623,33880.0,33879.0,1.22320656]
[1625607278650,3.04084497,33880.0,33879.0,1.22320656]
[1625607278830,2.80026953,33880.0,33879.0,1.22320656]
[1625607279313,3.76257129,33880.0,33879.0,1.22320656]
[1625607280400,3.76257129,33880.0,33879.0,0.00381135]
[1625607281175,2.19622255,33880.0,33879.0,0.00381135]
[1625607281355,2.19622255,33880.0,33879.0,4.14021135]
[1625607281656,2.19622255,33880.0,33879.0,0.00381135]
[1625607282675,1.95564711,33880.0,33879.0,4.70451135]
[1625607283038,1.94025777,33880.0,33879.0,4.70451135]
[1625607283156,0.73712212,33880.0,33879.0,4.70451135]
[1625607283277,0.73712212,33880.0,33879.0,4.94508679]
[1625607286168,0.73712212,33880.0,33879.0,6.51229097]
[1625607286406,0.49654668,33880.0,33879.0,6.51229097]
[1625607287068,0.49654668,33880.0,33879.0,6.21697469]
[1625607287308,0.25597124,33880.0,33879.0,6.21697469]
[1625607289593,0.25597124,33880.0,33879.0,7.60997654]
[1625607291274,0.25597124,33880.0,33879.0,7.61378374]
[1625607291400,0.49654668,33880.0,33879.0,6.04657956]
[1625607291816,1.88861735,33880.0,33879.0,1.63738449]
[1625607292118,1.88861735,33880.0,33879.0,1.39680905]
[1625607292780,1.88861735,33880.0,33879.0,0.0038072]
[1625607294040,1.88861735,33880.0,33878.0,1.39311544]
[1625607294222,1.38925584,33879.0,33877.0,1.39313626]
[1625607294349,1.40465419,33879.0,33877.0,1.39313626]
[1625607294463,1.38892895,33878.0,33877.0,1.39313626]
[1625607294643,6.19172746,33878.0,33877.0,1.39313626]
[1625607294884,6.19172746,33878.0,33877.0,1.39694251]
[1625607295963,6.19172746,33878.0,33877.0,5.80614251]
[1625607296083,5.86232746,33878.0,33877.0,5.80614251]
[1625607296744,6.90418962,33878.0,33877.0,6.85086224]
[1625607297584,5.51526067,33878.0,33877.0,6.85086224]
[1625607298608,6.9039083,33878.0,33877.0,6.85086224]
[1625607299210,5.51526067,33878.0,33877.0,6.85086224]
[1625607300352,5.51526067,33878.0,33877.0,7.18143224]
[1625607300531,6.73008236,33878.0,33877.0,8.40024509]
[1625607300772,6.73008236,33878.0,33877.0,8.10492881]
[1625607301436,7.250804,33878.0,33877.0,8.86785468]
[1625607302996,7.250804,33878.0,33877.0,4.45865468]
[1625607303298,7.250804,33878.0,33877.0,4.21807924]
[1625607303596,7.250804,33878.0,33877.0,3.88750924]
[1625607303837,7.250804,33878.0,33877.0,2.78968926]
[1625607307687,7.250804,33878.0,33877.0,2.49437298]
[1625607314779,7.250804,33878.0,33877.0,2.1990567]
[1625607315799,8.64104711,33878.0,33877.0,2.1990567]
[1625607317603,8.64104711,33878.0,33877.0,2.20286071]
[1625607317904,8.64104711,33878.0,33877.0,2.1990567]
[1625607319351,8.64104711,33878.0,33877.0,0.98024385]
[1625607319648,8.64104711,33878.0,33877.0,0.98404807]
[1625607321697,8.64104711,33878.0,33877.0,0.68873179]
[1625607321941,4.18304711,33878.0,33877.0,0.68873179]
[1625607322299,4.18304711,33878.0,33877.0,1.90654452]
[1625607322418,4.18304711,33878.0,33877.0,2.18411452]
[1625607322540,4.18304711,33878.0,33877.0,7.19641452]
[1625607324465,4.18304711,33878.0,33877.0,2.18411452]
[1625607326809,4.87932712,33878.0,33877.0,2.18411452]
[1625607326930,4.87932712,33878.0,33877.0,2.87949286]
[1625607327771,4.87932712,33878.0,33877.0,1.66168013]
[1625607327893,4.87932712,33878.0,33877.0,1.38411013]
[1625607328253,4.87932712,33878.0,33877.0,2.60116917]
[1625607328493,4.87932712,33878.0,33877.0,2.30585289]
[1625607329273,4.87932712,33878.0,33877.0,1.08879385]
[1625607333657,6.44571924,33878.0,33877.0,1.08879385]
[1625607333778,4.87932712,33878.0,33877.0,1.08879385]
[1625607334260,6.44571509,33878.0,33877.0,1.08879385]
[1625607335340,6.44571509,33878.0,33877.0,1.0623906]
[1625607337444,6.48059002,33878.0,33877.0,1.05858638]
[1625607337566,6.48059002,33878.0,33877.0,0.52206377]
[1625607337867,6.48059002,33878.0,33877.0,0.08701123]
[1625607338287,6.48059002,33878.0,33877.0,0.26103221]
[1625607338527,6.48059002,33878.0,33877.0,0.60907191]
[1625607338767,6.48059002,33878.0,33877.0,0.26103221]
[1625607339971,6.56789002,33878.0,33877.0,0.26103221]
[1625607340151,6.56789002,33878.0,33877.0,0.08701123]
[1625607340270,6.48059002,33878.0,33877.0,0.08701123]
[1625607340871,6.48059002,33878.0,33876.0,0.60894196]
[1625607341171,4.88518085,33877.0,33876.0,0.60894196]
[1625607341831,5.12575629,33877.0,33876.0,0.60894196]
[1625607343213,5.12575629,33877.0,33876.0,0.2609479]
[1625607344113,5.12575629,33877.0,33876.0,0.08697661]
[1625607344352,5.12575629,33877.0,33876.0,0.26090856]
[1625607344533,5.12575629,33877.0,33876.0,0.08697661]
[1625607345796,0.0872,33876.0,33875.0,0.60873566]
[1625607345973,4.95342839,33876.0,33875.0,0.60873566]
[1625607346094,5.22893256,33876.0,33875.0,0.60873566]
[1625607346574,5.22893256,33876.0,33875.0,0.52178004]
[1625607346754,5.22893256,33876.0,33875.0,0.60874266]
[1625607347115,5.14173256,33876.0,33875.0,0.60874266]
[1625607347236,5.14173256,33876.0,33875.0,0.26089716]
[1625607347476,5.14173256,33876.0,33875.0,0.08696262]
[1625607347658,5.14173256,33876.0,33874.0,0.60874293]
[1625607347777,0.24057544,33875.0,33874.0,0.60874293]
[1625607348017,5.11887522,33875.0,33874.0,0.60874293]
[1625607348616,5.11887522,33875.0,33874.0,0.52178597]
[1625607348857,5.11887522,33875.0,33874.0,0.60875179]
[1625607349338,5.11887522,33875.0,33874.0,0.52178597]
[1625607352460,5.11887522,33875.0,33874.0,0.34785602]
[1625607354803,5.11887522,33875.0,33874.0,0.69580172]
[1625607358766,6.16182719,33875.0,33874.0,0.69580172]
[1625607359979,6.16182719,33875.0,33874.0,0.34793355]
[1625607360211,6.16182719,33875.0,33874.0,0.52190057]
[1625607360990,6.16182719,33875.0,33874.0,0.34793355]
[1625607361350,6.16182719,33875.0,33873.0,0.6958671]
[1625607361590,5.90849397,33874.0,33873.0,0.6958671]
[1625607361710,5.9238958,33874.0,33873.0,0.6958671]
[1625607361952,6.16447124,33874.0,33873.0,0.6958671]
[1625607364414,6.16447124,33874.0,33872.0,0.69595976]
[1625607364654,4.33007165,33873.0,33872.0,0.69595976]
[1625607364896,4.34547306,33873.0,33872.0,0.69595976]
[1625607365255,5.90401487,33873.0,33872.0,0.69595976]
[1625607365981,6.14459031,33873.0,33872.0,0.69595976]
[1625607366522,4.5860485,33873.0,33872.0,0.69595976]
[1625607366761,6.14436548,33873.0,33872.0,0.6997637]
[1625607367422,4.5860485,33873.0,33872.0,0.6997637]
[1625607367601,4.5860485,33873.0,33872.0,1.74366613]
[1625607368082,9.4721485,33873.0,33872.0,1.74366613]
[1625607375058,11.33640793,33873.0,33872.0,0.6997637]
[1625607376019,11.32100652,33873.0,33872.0,0.69595976]
[1625607376204,11.33634862,33873.0,33872.0,0.69977768]
[1625607376980,11.33634862,33873.0,33872.0,0.69595976]
[1625607377160,11.33634862,33873.0,33871.0,0.75313547]
[1625607377282,11.33634862,33873.0,33872.0,0.69995023]
[1625607378364,11.33634862,33873.0,33872.0,0.69613229]
[1625607378606,11.33634862,33873.0,33872.0,0.69995022]
[1625607379211,11.33634862,33873.0,33872.0,0.69613229]
[1625607379388,11.33634862,33873.0,33871.0,0.69615641]
[1625607379689,4.3442905,33872.0,33871.0,0.69615641]
[1625607379928,5.90259331,33872.0,33871.0,0.69615641]
[1625607380048,4.3442905,33872.0,33871.0,0.69615641]
[1625607380168,4.3442905,33872.0,33871.0,0.69997442]
[1625607380771,4.3442905,33872.0,33871.0,1.74421324]
[1625607381070,4.3442905,33872.0,33871.0,0.69997442]
[1625607381491,4.3442905,33872.0,33871.0,0.69615641]
[1625607381791,4.3442905,33872.0,33871.0,1.7442488]
[1625607382091,4.3442905,33872.0,33871.0,1.74043078]
[1625607382212,5.90299785,33872.0,33871.0,0.69615641]
[1625607382332,10.41189785,33872.0,33871.0,0.69615641]
[1625607382813,10.41189785,33872.0,33871.0,0.69997443]
[1625607382934,10.41189785,33872.0,33871.0,1.74422686]
[1625607382935,8.8531905,33872.0,33871.0,1.74422686]
[1625607383055,13.7930905,33872.0,33871.0,1.74422686]
[1625607383657,18.7329905,33872.0,33871.0,1.74422686]
[1625607385344,25.2664905,33872.0,33871.0,1.74422686]
[1625607385461,18.7329905,33872.0,33871.0,1.74422686]
[1625607385941,23.5786905,33872.0,33871.0,1.74422686]
[1625607386060,18.7329905,33872.0,33871.0,1.74422686]
[1625607388346,23.7555905,33872.0,33871.0,1.74422686]
[1625607388464,18.7329905,33872.0,33871.0,1.74422686]
[1625607390448,20.29141622,33872.0,33871.0,1.74422686]
[1625607391347,26.11311622,33872.0,33871.0,1.74422686]
[1625607391468,20.29141622,33872.0,33871.0,1.74422686]
[1625607391890,26.81361622,33872.0,33871.0,1.74422686]
[1625607392069,20.29141622,33872.0,33871.0,1.74422686]
[1625607392492,26.81361622,33872.0,33871.0,1.74422686]
[1625607392610,20.29141622,33872.0,33871.0,1.74422686]
[1625607394353,15.96246807,33872.0,33871.0,0.00381802]
[1625607394593,20.29143954,33872.0,33871.0,0.70053337]
[1625607394835,20.29143954,33872.0,33871.0,1.74189855]
[1625607395982,20.37913954,33872.0,33871.0,1.74189855]
[1625607396218,20.37913954,33872.0,33871.0,0.69671535]
[1625607396940,20.29143954,33872.0,33871.0,1.74214804]
[1625607397478,20.29143954,33872.0,33871.0,0.69671535]
[1625607399643,15.96246807,33872.0,33869.0,0.057]
[1625607399822,5.88823324,33870.0,33869.0,0.057]
[1625607399944,5.88823324,33870.0,33868.0,1.21966259]
[1625607400064,1.57393012,33870.0,33869.0,1.74612391]
[1625607400363,5.90347334,33870.0,33869.0,1.74612391]
[1625607400664,9.54687334,33870.0,33869.0,1.74612391]
[1625607401148,7.98827939,33870.0,33869.0,2.96573884]
[1625607401266,7.98827939,33870.0,33869.0,8.01943884]
[1625607401389,7.98827939,33870.0,33869.0,9.41327549]
[1625607402228,8.22885483,33870.0,33869.0,9.41327549]
[1625607402469,8.22885483,33870.0,33869.0,4.35957549]
[1625607403551,12.68295483,33870.0,33869.0,4.35957549]
[1625607404394,17.13705483,33870.0,33869.0,4.35957549]
[1625607406076,17.22615483,33870.0,33869.0,4.35957549]
[1625607406676,17.22615483,33870.0,33869.0,2.96573884]
[1625607407759,17.13705483,33870.0,33869.0,2.96573884]
[1625607414854,17.13705483,33870.0,33869.0,1.22343448]
[1625607415034,17.13705483,33870.0,33869.0,2.96605806]
[1625607415157,12.80751161,33870.0,33869.0,2.96605806]
[1625607415274,17.13136865,33870.0,33869.0,2.96605806]